[Event "*** Titled Tuesday Blitz"]
[Site "Chess.com"]
[Date "2020.12.29"]
[Round "4"]
[White "Chamal_Gedgafov"]
[Black "profofchess"]
[Result "1-0"]
[WhiteElo "2216"]
[BlackElo "2400"]
[TimeControl "180+1"]
[EndTime "10:39:26 PST"]
[Termination "Chamal_Gedgafov won by resignation"]

1. e4 {[%clk 0:03:00.9]} 1... e6 {[%clk 0:03:00.2]} 2. d4 {[%clk 0:02:59.4]}
2... d5 {[%clk 0:03:01.1]} 3. Nd2 {[%clk 0:02:58.8]} 3... Nf6 {[%clk 0:03:01.1]}
4. e5 {[%clk 0:02:58.5]} 4... Nfd7 {[%clk 0:03:01.4]} 5. c3 {[%clk 0:02:58.7]}
5... c5 {[%clk 0:03:02.3]} 6. Qg4 {[%clk 0:02:58.3]} 6... h5 {[%clk 0:02:30.8]}
7. Qf4 {[%clk 0:02:56.4]} 7... g5 {[%clk 0:02:29.9]} 8. Qe3 {[%clk 0:02:55.5]}
8... Nc6 {[%clk 0:02:21.3]} 9. Bd3 {[%clk 0:02:51.1]} 9... Bh6 {[%clk
0:02:20.5]} 10. Ne2 {[%clk 0:02:47.8]} 10... f5 {[%clk 0:01:54]} 11. exf6 {[%clk
0:02:36.4]} 11... Qxf6 {[%clk 0:01:51.9]} 12. O-O {[%clk 0:02:22.9]} 12... h4
{[%clk 0:00:56]} 13. f4 {[%clk 0:02:20.8]} 13... g4 {[%clk 0:00:53.5]} 14. dxc5
{[%clk 0:02:17.8]} 14... Nde5 {[%clk 0:00:19.1]} 15. Nd4 {[%clk 0:01:59.3]}
15... Nxd3 {[%clk 0:00:16.2]} 16. Qxd3 {[%clk 0:01:56.5]} 16... Bd7 {[%clk
0:00:15.9]} 17. N2b3 {[%clk 0:01:46]} 17... O-O-O {[%clk 0:00:13.8]} 18. Nxc6
{[%clk 0:01:45.3]} 18... Bxc6 {[%clk 0:00:12.7]} 19. Nd4 {[%clk 0:01:45.5]}
19... g3 {[%clk 0:00:11.2]} 20. h3 {[%clk 0:01:44.6]} 20... Kb8 {[%clk
0:00:05.3]} 21. Bd2 {[%clk 0:01:40.1]} 21... Rhf8 {[%clk 0:00:04]} 22. Rae1
{[%clk 0:01:36.2]} 22... Bd7 {[%clk 0:00:03.8]} 23. Nf3 {[%clk 0:01:22.3]} 23...
Rfe8 {[%clk 0:00:03.6]} 24. Ne5 {[%clk 0:01:21.6]} 24... Re7 {[%clk 0:00:03.5]}
25. b4 {[%clk 0:01:19.3]} 25... Be8 {[%clk 0:00:03.6]} 26. b5 {[%clk 0:01:15.6]}
26... Bg7 {[%clk 0:00:01.5]} 27. Be3 {[%clk 0:01:13.4]} 27... Qf5 {[%clk
0:00:01.7]} 28. Qe2 {[%clk 0:01:03.7]} 28... Bxe5 {[%clk 0:00:01.5]} 29. fxe5
{[%clk 0:01:03.2]} 29... Qh5 {[%clk 0:00:02]} 30. Qxh5 {[%clk 0:00:55]} 30...
Bxh5 {[%clk 0:00:02.1]} 31. Bg5 {[%clk 0:00:54.5]} 31... Red7 {[%clk 0:00:02]}
32. Bxd8 {[%clk 0:00:49.2]} 32... Rxd8 {[%clk 0:00:02.9]} 33. Rf4 {[%clk
0:00:44.5]} 33... Be8 {[%clk 0:00:03.3]} 34. b6 {[%clk 0:00:40]} 34... axb6
{[%clk 0:00:03.1]} 35. cxb6 {[%clk 0:00:39.8]} 35... Rc8 {[%clk 0:00:03.6]} 36.
Re3 {[%clk 0:00:37.7]} 36... Bb5 {[%clk 0:00:02.9]} 37. Rxh4 {[%clk 0:00:36.8]}
37... Bc4 {[%clk 0:00:03.2]} 38. a4 {[%clk 0:00:33.1]} 38... Rf8 {[%clk
0:00:03.5]} 39. Rxg3 {[%clk 0:00:31.8]} 39... Kc8 {[%clk 0:00:02.9]} 40. Rg7
{[%clk 0:00:28.3]} 40... Rf1+ {[%clk 0:00:02.7]} 41. Kh2 {[%clk 0:00:27.2]}
41... Rf8 {[%clk 0:00:02.2]} 42. Rhh7 {[%clk 0:00:24.8]} 42... Ba6 {[%clk
0:00:02.1]} 43. h4 {[%clk 0:00:20.3]} 43... Kb8 {[%clk 0:00:02.3]} 44. h5 {[%clk
0:00:19.9]} 44... Rc8 {[%clk 0:00:02.5]} 45. h6 {[%clk 0:00:19]} 45... Ka8
{[%clk 0:00:02.7]} 46. Rc7 {[%clk 0:00:17.8]} 46... Rg8 {[%clk 0:00:01.6]} 47.
Rhg7 {[%clk 0:00:17.3]} 47... Rh8 {[%clk 0:00:01.7]} 48. h7 {[%clk 0:00:17.9]}
48... d4 {[%clk 0:00:01.3]} 49. Rg8+ {[%clk 0:00:17.4]} 1-0

[Event "*** Titled Tuesday Blitz"]
[Site "Chess.com"]
[Date "2020.12.29"]
[Round "4"]
[White "Son_of_Sultan"]
[Black "Jumbo"]
[Result "1-0"]
[WhiteElo "2551"]
[BlackElo "2818"]
[TimeControl "180+1"]
[EndTime "10:39:27 PST"]
[Termination "Son_of_Sultan won on time"]

1. Nf3 {[%clk 0:02:57.7]} 1... c6 {[%clk 0:02:59.6]} 2. e4 {[%clk 0:02:48.9]}
2... d5 {[%clk 0:02:59.6]} 3. d3 {[%clk 0:02:47.9]} 3... Qc7 {[%clk 0:02:57.3]}
4. Nc3 {[%clk 0:02:23.8]} 4... dxe4 {[%clk 0:02:56.1]} 5. dxe4 {[%clk
0:02:21.8]} 5... e5 {[%clk 0:02:56.1]} 6. Bc4 {[%clk 0:02:18.7]} 6... Bc5 {[%clk
0:02:34.8]} 7. Ng5 {[%clk 0:02:08.6]} 7... Nh6 {[%clk 0:02:33.5]} 8. O-O {[%clk
0:02:01]} 8... Nd7 {[%clk 0:01:58.8]} 9. h3 {[%clk 0:01:47.6]} 9... b5 {[%clk
0:01:37.9]} 10. Bb3 {[%clk 0:01:44]} 10... a5 {[%clk 0:01:38.2]} 11. a3 {[%clk
0:01:42]} 11... Nb6 {[%clk 0:01:16.4]} 12. Qh5 {[%clk 0:01:31.7]} 12... O-O
{[%clk 0:01:15]} 13. Kh1 {[%clk 0:01:17]} 13... Nc4 {[%clk 0:00:55.8]} 14. f4
{[%clk 0:01:14.2]} 14... f6 {[%clk 0:00:50.8]} 15. Nf3 {[%clk 0:00:55.4]} 15...
Nf7 {[%clk 0:00:48.8]} 16. f5 {[%clk 0:00:51.4]} 16... a4 {[%clk 0:00:36.9]} 17.
Bxc4 {[%clk 0:00:45.5]} 17... bxc4 {[%clk 0:00:37.8]} 18. Nh2 {[%clk 0:00:40.9]}
18... Bd4 {[%clk 0:00:29.8]} 19. Qe2 {[%clk 0:00:38.8]} 19... Nd6 {[%clk
0:00:28.9]} 20. Nf3 {[%clk 0:00:37.5]} 20... Rd8 {[%clk 0:00:21.8]} 21. Bd2
{[%clk 0:00:36.3]} 21... Bb7 {[%clk 0:00:21.2]} 22. Rae1 {[%clk 0:00:28.8]}
22... c5 {[%clk 0:00:20.3]} 23. Nd5 {[%clk 0:00:23.3]} 23... Bxd5 {[%clk
0:00:20.6]} 24. exd5 {[%clk 0:00:23.4]} 24... Bxb2 {[%clk 0:00:21]} 25. c3
{[%clk 0:00:20]} 25... Rab8 {[%clk 0:00:21]} 26. g4 {[%clk 0:00:15.5]} 26...
Bxa3 {[%clk 0:00:19.3]} 27. g5 {[%clk 0:00:14.7]} 27... Nxf5 {[%clk 0:00:17.8]}
28. Rg1 {[%clk 0:00:14.2]} 28... e4 {[%clk 0:00:16]} 29. gxf6 {[%clk 0:00:10.7]}
29... Ng3+ {[%clk 0:00:13.4]} 30. Rxg3 {[%clk 0:00:10.7]} 30... Qxg3 {[%clk
0:00:14.3]} 31. Ng5 {[%clk 0:00:09.7]} 31... Rb2 {[%clk 0:00:12.2]} 32. Rg1
{[%clk 0:00:08.4]} 32... Qd3 {[%clk 0:00:07.4]} 33. f7+ {[%clk 0:00:08.5]} 33...
Kh8 {[%clk 0:00:07.5]} 34. Qh5 {[%clk 0:00:07.7]} 34... e3 {[%clk 0:00:07.7]}
35. Ne6 {[%clk 0:00:06.2]} 35... Rxd2 {[%clk 0:00:02.7]} 36. Nxd8 {[%clk
0:00:05.4]} 36... Rf2 {[%clk 0:00:03.1]} 37. f8=Q+ {[%clk 0:00:04.8]} 37... Rxf8
{[%clk 0:00:02.7]} 38. Nf7+ {[%clk 0:00:05.7]} 38... Rxf7 {[%clk 0:00:01.9]} 39.
Qxf7 {[%clk 0:00:06.6]} 39... Qe4+ {[%clk 0:00:02.7]} 40. Rg2 {[%clk 0:00:06.2]}
1-0

[Event "*** Titled Tuesday Blitz"]
[Site "Chess.com"]
[Date "2020.12.29"]
[Round "4"]
[White "Kaslask"]
[Black "catzapto"]
[Result "0-1"]
[WhiteElo "2274"]
[BlackElo "2117"]
[TimeControl "180+1"]
[EndTime "10:39:28 PST"]
[Termination "catzapto won on time"]

1. e4 {[%clk 0:03:00.9]} 1... c5 {[%clk 0:03:00.1]} 2. Nc3 {[%clk 0:02:57.9]}
2... e6 {[%clk 0:03:01]} 3. f4 {[%clk 0:02:56]} 3... Nc6 {[%clk 0:03:01.9]} 4.
Nf3 {[%clk 0:02:54.9]} 4... d5 {[%clk 0:03:02.2]} 5. Bb5 {[%clk 0:02:50.1]} 5...
d4 {[%clk 0:03:01.7]} 6. Bxc6+ {[%clk 0:02:49.4]} 6... bxc6 {[%clk 0:03:02.6]}
7. Ne2 {[%clk 0:02:48.4]} 7... Nf6 {[%clk 0:03:02.9]} 8. d3 {[%clk 0:02:47.7]}
8... Be7 {[%clk 0:03:02.3]} 9. O-O {[%clk 0:02:46.9]} 9... O-O {[%clk
0:03:02.3]} 10. b3 {[%clk 0:02:38.3]} 10... a5 {[%clk 0:03:00.8]} 11. a4 {[%clk
0:02:37.4]} 11... Rb8 {[%clk 0:02:59.6]} 12. Ba3 {[%clk 0:02:34.3]} 12... Qd7
{[%clk 0:02:44.5]} 13. h3 {[%clk 0:02:32.2]} 13... Rd8 {[%clk 0:02:30.8]} 14.
Ne5 {[%clk 0:02:30.5]} 14... Qc7 {[%clk 0:02:08.7]} 15. Qe1 {[%clk 0:02:28.6]}
15... Ra8 {[%clk 0:02:01.3]} 16. Nc4 {[%clk 0:02:25.6]} 16... Ne8 {[%clk
0:01:59.4]} 17. e5 {[%clk 0:02:19.7]} 17... Ba6 {[%clk 0:01:52.8]} 18. Nd2
{[%clk 0:02:11.9]} 18... f6 {[%clk 0:01:50.6]} 19. Ng3 {[%clk 0:02:07.6]} 19...
fxe5 {[%clk 0:01:45.2]} 20. Nf3 {[%clk 0:02:04.9]} 20... exf4 {[%clk 0:01:36.3]}
21. Qxe6+ {[%clk 0:02:03.1]} 21... Kh8 {[%clk 0:01:35.2]} 22. Ne5 {[%clk
0:02:02]} 22... Nd6 {[%clk 0:01:26.4]} 23. Rxf4 {[%clk 0:01:56.6]} 23... Rf8
{[%clk 0:01:26.6]} 24. Raf1 {[%clk 0:01:45.2]} 24... Rxf4 {[%clk 0:01:23]} 25.
Rxf4 {[%clk 0:01:43.9]} 25... Bf6 {[%clk 0:01:23.4]} 26. Rxf6 {[%clk 0:01:20.4]}
26... gxf6 {[%clk 0:01:06.2]} 27. Qxd6 {[%clk 0:01:14.2]} 27... Qxd6 {[%clk
0:01:05.4]} 28. Nf7+ {[%clk 0:01:13.1]} 28... Kg7 {[%clk 0:01:06.3]} 29. Nxd6
{[%clk 0:01:12.7]} 29... c4 {[%clk 0:00:49.8]} 30. bxc4 {[%clk 0:00:59.7]} 30...
Bc8 {[%clk 0:00:49]} 31. Bc5 {[%clk 0:00:53.9]} 31... Rb8 {[%clk 0:00:45.9]} 32.
Bxd4 {[%clk 0:00:53.1]} 32... Be6 {[%clk 0:00:46.2]} 33. Nh5+ {[%clk 0:00:47.5]}
33... Kg6 {[%clk 0:00:45.4]} 34. Nf4+ {[%clk 0:00:45.9]} 34... Kh6 {[%clk
0:00:41.9]} 35. Nxe6 {[%clk 0:00:44.4]} 35... f5 {[%clk 0:00:42.5]} 36. Nxf5+
{[%clk 0:00:38]} 36... Kg6 {[%clk 0:00:41.3]} 37. g4 {[%clk 0:00:36.2]} 37... h5
{[%clk 0:00:40.6]} 38. Nf4+ {[%clk 0:00:31.2]} 38... Kg5 {[%clk 0:00:40.1]} 39.
Nxh5 {[%clk 0:00:30.3]} 39... c5 {[%clk 0:00:36.6]} 40. Bf6+ {[%clk 0:00:28.1]}
40... Kg6 {[%clk 0:00:36.3]} 41. Ne7+ {[%clk 0:00:25.2]} 41... Kh7 {[%clk
0:00:36]} 42. g5 {[%clk 0:00:24.3]} 42... Rb1+ {[%clk 0:00:34.2]} 43. Kg2 {[%clk
0:00:23.5]} 43... Rg1+ {[%clk 0:00:34.4]} 44. Kf3 {[%clk 0:00:18.2]} 44... Rg3+
{[%clk 0:00:34.8]} 45. Ke4 {[%clk 0:00:15.1]} 45... Re3+ {[%clk 0:00:34.8]} 46.
Kd5 {[%clk 0:00:12.9]} 46... Re5+ {[%clk 0:00:33.5]} 47. Kd6 {[%clk 0:00:11.9]}
47... Re6+ {[%clk 0:00:33.8]} 48. Kxc5 {[%clk 0:00:09.6]} 48... Re5+ {[%clk
0:00:33.4]} 49. Kb6 {[%clk 0:00:07.8]} 49... Rb5+ {[%clk 0:00:33.3]} 50. Kc7
{[%clk 0:00:07.8]} 50... Rb7+ {[%clk 0:00:33.4]} 51. Kd8 {[%clk 0:00:06.9]}
51... Rd7+ {[%clk 0:00:33.7]} 52. Ke8 {[%clk 0:00:05.5]} 52... Rd8+ {[%clk
0:00:32.7]} 53. Kf7 {[%clk 0:00:05.5]} 53... Rf8+ {[%clk 0:00:31.2]} 54. Ke6
{[%clk 0:00:05.2]} 54... Rxf6+ {[%clk 0:00:30.8]} 55. Nxf6+ {[%clk 0:00:01.9]}
55... Kh8 {[%clk 0:00:31.2]} 0-1

[Event "*** Titled Tuesday Blitz"]
[Site "Chess.com"]
[Date "2020.12.29"]
[Round "4"]
[White "PotapovaM"]
[Black "ChristopherYoo"]
[Result "0-1"]
[WhiteElo "2543"]
[BlackElo "2873"]
[TimeControl "180+1"]
[EndTime "10:39:29 PST"]
[Termination "ChristopherYoo won by checkmate"]

1. d4 {[%clk 0:03:00.9]} 1... Nf6 {[%clk 0:02:59.5]} 2. c4 {[%clk 0:03:01.3]}
2... e6 {[%clk 0:02:58.3]} 3. Nf3 {[%clk 0:03:00.3]} 3... d5 {[%clk 0:02:57.8]}
4. Nc3 {[%clk 0:02:59.8]} 4... dxc4 {[%clk 0:02:57.3]} 5. e4 {[%clk 0:02:59.6]}
5... Bb4 {[%clk 0:02:55.5]} 6. Bxc4 {[%clk 0:02:59.5]} 6... Nxe4 {[%clk
0:02:54.4]} 7. O-O {[%clk 0:02:59.8]} 7... Nxc3 {[%clk 0:02:54.4]} 8. bxc3
{[%clk 0:02:59.7]} 8... Bd6 {[%clk 0:02:54.1]} 9. Qe2 {[%clk 0:02:55.9]} 9...
O-O {[%clk 0:02:47.2]} 10. Rd1 {[%clk 0:02:55.7]} 10... Nc6 {[%clk 0:02:22.4]}
11. Bd3 {[%clk 0:02:53.9]} 11... f6 {[%clk 0:01:13.2]} 12. Qe4 {[%clk
0:02:38.8]} 12... g6 {[%clk 0:01:10.8]} 13. Bh6 {[%clk 0:02:38.3]} 13... Re8
{[%clk 0:01:10]} 14. h4 {[%clk 0:02:27.7]} 14... Ne7 {[%clk 0:01:08.7]} 15. h5
{[%clk 0:01:56.6]} 15... Bd7 {[%clk 0:00:58.6]} 16. Nh4 {[%clk 0:01:12.3]} 16...
f5 {[%clk 0:00:31.5]} 17. Qe1 {[%clk 0:00:45.6]} 17... Nd5 {[%clk 0:00:24.8]}
18. g3 {[%clk 0:00:38.6]} 18... Qf6 {[%clk 0:00:19.9]} 19. hxg6 {[%clk
0:00:33.2]} 19... hxg6 {[%clk 0:00:19.5]} 20. Nf3 {[%clk 0:00:33.9]} 20... Bc6
{[%clk 0:00:14.2]} 21. Ng5 {[%clk 0:00:28.7]} 21... Qh8 {[%clk 0:00:13.1]} 22.
c4 {[%clk 0:00:27.3]} 22... Qxh6 {[%clk 0:00:12.9]} 23. Qd2 {[%clk 0:00:08.7]}
23... Nf4 {[%clk 0:00:09.1]} 24. d5 {[%clk 0:00:05.3]} 24... Qxg5 {[%clk
0:00:04.7]} 25. dxc6 {[%clk 0:00:04.1]} 25... bxc6 {[%clk 0:00:05.6]} 26. Bf1
{[%clk 0:00:02.8]} 26... Rad8 {[%clk 0:00:04.3]} 27. Qe3 {[%clk 0:00:02.5]}
27... e5 {[%clk 0:00:03.7]} 28. c5 {[%clk 0:00:02.3]} 28... Bf8 {[%clk
0:00:02.7]} 29. Bc4+ {[%clk 0:00:02.8]} 29... Kg7 {[%clk 0:00:02.4]} 30. Re1
{[%clk 0:00:02.8]} 30... Kf6 {[%clk 0:00:02.4]} 31. Kf1 {[%clk 0:00:02.6]} 31...
Qh6 {[%clk 0:00:02.4]} 32. gxf4 {[%clk 0:00:02.7]} 32... exf4 {[%clk 0:00:02.8]}
33. Qc3+ {[%clk 0:00:03.2]} 33... Kg5 {[%clk 0:00:02.8]} 34. Rxe8 {[%clk
0:00:03.4]} 34... Qh1+ {[%clk 0:00:03.1]} 35. Ke2 {[%clk 0:00:03.3]} 35... Rxe8+
{[%clk 0:00:04]} 36. Kd2 {[%clk 0:00:03.9]} 36... Qg2 {[%clk 0:00:04.3]} 37. Rf1
{[%clk 0:00:02.9]} 37... Bxc5 {[%clk 0:00:04.6]} 38. Qd3 {[%clk 0:00:02.3]}
38... Bxf2 {[%clk 0:00:04.5]} 39. Kc3 {[%clk 0:00:02.1]} 39... Re3 {[%clk
0:00:03.6]} 40. Kb4 {[%clk 0:00:02.3]} 40... Rxd3 {[%clk 0:00:03.7]} 41. Bxd3
{[%clk 0:00:02.5]} 41... Bd4 {[%clk 0:00:04]} 42. Bc4 {[%clk 0:00:02.5]} 42...
Qd2+ {[%clk 0:00:03.4]} 43. Kb3 {[%clk 0:00:02.2]} 43... Qc3+ {[%clk 0:00:03.3]}
44. Ka4 {[%clk 0:00:02.5]} 44... Qxc4+ {[%clk 0:00:04.2]} 45. Ka5 {[%clk
0:00:03.1]} 45... Bb6# {[%clk 0:00:04.1]} 0-1

[Event "*** Titled Tuesday Blitz"]
[Site "Chess.com"]
[Date "2020.12.29"]
[Round "4"]
[White "Rozum_Ivan"]
[Black "hansen"]
[Result "0-1"]
[WhiteElo "2738"]
[BlackElo "2906"]
[TimeControl "180+1"]
[EndTime "10:39:31 PST"]
[Termination "hansen won by resignation"]

1. d4 {[%clk 0:03:00.9]} 1... Nf6 {[%clk 0:02:55.1]} 2. c4 {[%clk 0:03:00.7]}
2... g6 {[%clk 0:02:52.1]} 3. g3 {[%clk 0:03:00.1]} 3... Bg7 {[%clk 0:02:50.7]}
4. Bg2 {[%clk 0:03:00.5]} 4... O-O {[%clk 0:02:50.9]} 5. Nc3 {[%clk 0:03:00.5]}
5... d6 {[%clk 0:02:39.3]} 6. Nf3 {[%clk 0:03:00.5]} 6... Nbd7 {[%clk
0:02:27.8]} 7. O-O {[%clk 0:03:00.3]} 7... e5 {[%clk 0:02:28.5]} 8. e4 {[%clk
0:03:00.3]} 8... exd4 {[%clk 0:02:25.2]} 9. Nxd4 {[%clk 0:03:00.4]} 9... c6
{[%clk 0:02:24.7]} 10. Be3 {[%clk 0:02:56.7]} 10... Re8 {[%clk 0:02:24.2]} 11.
Re1 {[%clk 0:02:43]} 11... Qa5 {[%clk 0:02:17.5]} 12. h3 {[%clk 0:02:33.2]}
12... Ne5 {[%clk 0:02:02.2]} 13. Qb3 {[%clk 0:02:07.2]} 13... Nfd7 {[%clk
0:01:56.5]} 14. Bf1 {[%clk 0:02:02]} 14... Nc5 {[%clk 0:01:53.8]} 15. Qc2 {[%clk
0:02:01.7]} 15... Ne6 {[%clk 0:01:43.9]} 16. Kg2 {[%clk 0:01:46.5]} 16... Nxd4
{[%clk 0:01:38.5]} 17. Bxd4 {[%clk 0:01:47.4]} 17... Nf3 {[%clk 0:01:32.5]} 18.
Kxf3 {[%clk 0:01:43.9]} 18... Bxd4 {[%clk 0:01:33.1]} 19. Kg2 {[%clk 0:01:39]}
19... Be6 {[%clk 0:01:23.4]} 20. Rad1 {[%clk 0:01:38.3]} 20... Be5 {[%clk
0:00:50.7]} 21. f4 {[%clk 0:01:35]} 21... Bxc3 {[%clk 0:00:49.4]} 22. Qxc3
{[%clk 0:01:35.9]} 22... Qxc3 {[%clk 0:00:49.6]} 23. bxc3 {[%clk 0:01:36.8]}
23... Rad8 {[%clk 0:00:48.4]} 24. Rd2 {[%clk 0:01:28.3]} 24... Kf8 {[%clk
0:00:48.1]} 25. Kf2 {[%clk 0:01:25.2]} 25... f6 {[%clk 0:00:41.7]} 26. Rb1
{[%clk 0:01:20.9]} 26... Rd7 {[%clk 0:00:30.2]} 27. Rdb2 {[%clk 0:01:19.8]}
27... Ree7 {[%clk 0:00:29.9]} 28. h4 {[%clk 0:01:18.2]} 28... f5 {[%clk
0:00:26.4]} 29. Re1 {[%clk 0:01:11.9]} 29... fxe4 {[%clk 0:00:25.7]} 30. Rxe4
{[%clk 0:01:12.8]} 30... Bf5 {[%clk 0:00:25.4]} 31. Rd4 {[%clk 0:01:10.7]} 31...
h5 {[%clk 0:00:24.5]} 32. Bd3 {[%clk 0:01:07]} 32... Kf7 {[%clk 0:00:23.6]} 33.
Bxf5 {[%clk 0:01:00.4]} 33... gxf5 {[%clk 0:00:23]} 34. Rbd2 {[%clk 0:01:01.1]}
34... Re6 {[%clk 0:00:22.4]} 35. c5 {[%clk 0:01:00.8]} 35... Ke7 {[%clk
0:00:18.2]} 36. c4 {[%clk 0:00:54.4]} 36... b6 {[%clk 0:00:17.2]} 37. cxb6
{[%clk 0:00:37.1]} 37... axb6 {[%clk 0:00:17.5]} 38. Rb2 {[%clk 0:00:37.3]}
38... Ra7 {[%clk 0:00:18.1]} 39. Rdd2 {[%clk 0:00:27.1]} 39... Ra6 {[%clk
0:00:17]} 40. Rb4 {[%clk 0:00:15.4]} 40... c5 {[%clk 0:00:14.5]} 41. Rb3 {[%clk
0:00:12.9]} 41... Re4 {[%clk 0:00:14.6]} 42. Rc2 {[%clk 0:00:08.7]} 42... Ra4
{[%clk 0:00:11.1]} 43. Rxb6 {[%clk 0:00:06.6]} 43... Raxc4 {[%clk 0:00:11.3]}
44. Rxc4 {[%clk 0:00:06.9]} 44... Rxc4 {[%clk 0:00:11.5]} 45. Rb7+ {[%clk
0:00:06.9]} 45... Ke6 {[%clk 0:00:11.5]} 46. Rb2 {[%clk 0:00:06.6]} 46... Ra4
{[%clk 0:00:11.2]} 47. Ke3 {[%clk 0:00:06.4]} 47... Ra3+ {[%clk 0:00:11.1]} 48.
Kf2 {[%clk 0:00:05.4]} 48... c4 {[%clk 0:00:11.5]} 49. Rd2 {[%clk 0:00:04.9]}
49... d5 {[%clk 0:00:11.3]} 50. Re2+ {[%clk 0:00:03]} 50... Kd6 {[%clk 0:00:11]}
51. Re5 {[%clk 0:00:03]} 51... Rxa2+ {[%clk 0:00:11.2]} 0-1

[Event "*** Titled Tuesday Blitz"]
[Site "Chess.com"]
[Date "2020.12.29"]
[Round "4"]
[White "KyronGriffith"]
[Black "Kolle05"]
[Result "0-1"]
[WhiteElo "2545"]
[BlackElo "2395"]
[TimeControl "180+1"]
[EndTime "10:39:32 PST"]
[Termination "Kolle05 won on time"]

1. e4 {[%clk 0:03:00.9]} 1... c5 {[%clk 0:02:59.5]} 2. Nf3 {[%clk 0:03:00.8]}
2... d6 {[%clk 0:03:00]} 3. d4 {[%clk 0:03:01.3]} 3... cxd4 {[%clk 0:03:00.9]}
4. Nxd4 {[%clk 0:03:02.2]} 4... Nf6 {[%clk 0:03:01.4]} 5. Nc3 {[%clk 0:03:02.8]}
5... a6 {[%clk 0:03:00.3]} 6. Nb3 {[%clk 0:03:03.3]} 6... g6 {[%clk 0:02:56.7]}
7. Be2 {[%clk 0:03:02]} 7... Bg7 {[%clk 0:02:56.5]} 8. O-O {[%clk 0:03:02.7]}
8... O-O {[%clk 0:02:56.2]} 9. a4 {[%clk 0:03:03]} 9... Nc6 {[%clk 0:02:55.5]}
10. Be3 {[%clk 0:03:01.4]} 10... Be6 {[%clk 0:02:52]} 11. f4 {[%clk 0:03:01.1]}
11... Rc8 {[%clk 0:02:50.1]} 12. Kh1 {[%clk 0:02:55.9]} 12... Nb4 {[%clk
0:02:36.6]} 13. Nd4 {[%clk 0:02:48]} 13... Bc4 {[%clk 0:02:34.7]} 14. Bd3 {[%clk
0:02:45]} 14... Bxd3 {[%clk 0:02:24]} 15. cxd3 {[%clk 0:02:45.9]} 15... Nd7
{[%clk 0:02:16.6]} 16. Qd2 {[%clk 0:02:40.9]} 16... Nc5 {[%clk 0:02:14.9]} 17.
Rad1 {[%clk 0:02:06.3]} 17... Ncxd3 {[%clk 0:02:05.1]} 18. Nd5 {[%clk
0:01:31.4]} 18... a5 {[%clk 0:01:39.5]} 19. Qe2 {[%clk 0:01:07.8]} 19... Nxd5
{[%clk 0:01:37.2]} 20. exd5 {[%clk 0:01:06]} 20... Nb4 {[%clk 0:01:37.3]} 21.
Qf3 {[%clk 0:00:52.6]} 21... Nc2 {[%clk 0:01:33.3]} 22. Bg1 {[%clk 0:00:41.5]}
22... Nxd4 {[%clk 0:01:13.2]} 23. Bxd4 {[%clk 0:00:42.4]} 23... Rc2 {[%clk
0:01:13.1]} 24. Bxg7 {[%clk 0:00:38.4]} 24... Kxg7 {[%clk 0:01:13.9]} 25. f5
{[%clk 0:00:39.3]} 25... f6 {[%clk 0:01:09.1]} 26. fxg6 {[%clk 0:00:37.4]} 26...
hxg6 {[%clk 0:01:10]} 27. Qb3 {[%clk 0:00:34.3]} 27... Qc7 {[%clk 0:01:09.7]}
28. Rde1 {[%clk 0:00:34]} 28... Re8 {[%clk 0:01:03.7]} 29. Rf3 {[%clk
0:00:25.7]} 29... Rc1 {[%clk 0:00:56.7]} 30. Re3 {[%clk 0:00:25]} 30... Rxe1+
{[%clk 0:00:56.5]} 31. Rxe1 {[%clk 0:00:25.9]} 31... Rh8 {[%clk 0:00:51.5]} 32.
Qe3 {[%clk 0:00:23.1]} 32... Kf7 {[%clk 0:00:45.9]} 33. Rc1 {[%clk 0:00:22.6]}
33... Qd7 {[%clk 0:00:42.6]} 34. b3 {[%clk 0:00:23]} 34... Rh5 {[%clk
0:00:41.8]} 35. Rd1 {[%clk 0:00:15.2]} 35... Qg4 {[%clk 0:00:41.4]} 36. Re1
{[%clk 0:00:13.6]} 36... Re5 {[%clk 0:00:39.8]} 37. Qd2 {[%clk 0:00:14]} 37...
Qg5 {[%clk 0:00:18.6]} 38. Qd1 {[%clk 0:00:12]} 38... Rxd5 {[%clk 0:00:18.5]}
39. Qb1 {[%clk 0:00:10.8]} 39... Re5 {[%clk 0:00:18.5]} 40. Rf1 {[%clk 0:00:10]}
40... Re2 {[%clk 0:00:16.8]} 41. Rg1 {[%clk 0:00:10.1]} 41... Qf5 {[%clk
0:00:16.8]} 42. Qc1 {[%clk 0:00:09.8]} 42... Qe5 {[%clk 0:00:15.8]} 43. Qc4+
{[%clk 0:00:10.1]} 43... d5 {[%clk 0:00:16.2]} 44. Qb5 {[%clk 0:00:09.4]} 44...
Re1 {[%clk 0:00:14.8]} 45. h3 {[%clk 0:00:09.9]} 45... Rxg1+ {[%clk 0:00:14.7]}
46. Kxg1 {[%clk 0:00:10.8]} 46... d4 {[%clk 0:00:15.5]} 47. Qc4+ {[%clk
0:00:10.2]} 47... Kg7 {[%clk 0:00:14.5]} 48. Kf1 {[%clk 0:00:09]} 48... Qe3
{[%clk 0:00:14]} 49. Qd5 {[%clk 0:00:03.2]} 49... d3 {[%clk 0:00:13.5]} 50. h4
{[%clk 0:00:03.2]} 50... d2 {[%clk 0:00:13.5]} 0-1